[Event "*** SCC Grand Prix: Titled Tuesday Blitz"]
[Site "Chess.com"]
[Date "2020.06.09"]
[Round "3"]
[White "CalinGheorghiu"]
[Black "robertofabregas"]
[Result "1-0"]
[WhiteElo "2342"]
[BlackElo "2099"]
[TimeControl "180+1"]
[EndTime "9:31:58 PDT"]
[Termination "CalinGheorghiu won by resignation"]

1. e4 {[%clk 0:03:00.9]} 1... c5 {[%clk 0:02:57.7]} 2. Nf3 {[%clk 0:02:59.1]}
2... d6 {[%clk 0:02:57.2]} 3. d4 {[%clk 0:02:57.3]} 3... cxd4 {[%clk 0:02:58.1]}
4. Nxd4 {[%clk 0:02:54.6]} 4... Nf6 {[%clk 0:02:58.1]} 5. Nc3 {[%clk 0:02:55.2]}
5... e6 {[%clk 0:02:56.2]} 6. Be2 {[%clk 0:02:52.5]} 6... Nc6 {[%clk 0:02:54.9]}
7. Be3 {[%clk 0:02:52.1]} 7... Be7 {[%clk 0:02:50.8]} 8. O-O {[%clk 0:02:49.8]}
8... O-O {[%clk 0:02:46.5]} 9. f4 {[%clk 0:02:44.7]} 9... e5 {[%clk 0:02:35.4]}
10. Nxc6 {[%clk 0:02:28]} 10... bxc6 {[%clk 0:02:36.3]} 11. fxe5 {[%clk
0:02:28.3]} 11... dxe5 {[%clk 0:02:35.8]} 12. Qe1 {[%clk 0:02:28.6]} 12... Kh8
{[%clk 0:02:18.4]} 13. Qg3 {[%clk 0:02:27.4]} 13... Qc7 {[%clk 0:02:15.9]} 14.
Bg5 {[%clk 0:01:49.5]} 14... Be6 {[%clk 0:02:15.3]} 15. Qh4 {[%clk 0:01:47.1]}
15... Qb6+ {[%clk 0:01:55.8]} 16. Kh1 {[%clk 0:01:46.3]} 16... Qxb2 {[%clk
0:01:55.4]} 17. Rac1 {[%clk 0:01:40.3]} 17... Qxc3 {[%clk 0:01:53]} 18. Rf3
{[%clk 0:01:40.5]} 18... Qb2 {[%clk 0:01:04.5]} 19. Rcf1 {[%clk 0:01:38]} 19...
Qxc2 {[%clk 0:00:36.4]} 20. Bd3 {[%clk 0:01:30.9]} 20... Qc5 {[%clk 0:00:34.3]}
21. Rxf6 {[%clk 0:01:26.6]} 21... Bxf6 {[%clk 0:00:28.9]} 22. Bxf6 {[%clk
0:01:24.7]} 22... gxf6 {[%clk 0:00:26.1]} 23. Qxf6+ {[%clk 0:01:23.5]} 23... Kg8
{[%clk 0:00:25.8]} 24. Rf3 {[%clk 0:01:07.7]} 24... Qc1+ {[%clk 0:00:24]} 25.
Bf1 {[%clk 0:01:07.5]} 25... Qf4 {[%clk 0:00:22]} 26. Rxf4 {[%clk 0:01:04.6]}
26... exf4 {[%clk 0:00:21.6]} 27. h4 {[%clk 0:01:03.4]} 27... Bxa2 {[%clk
0:00:20.7]} 28. h5 {[%clk 0:01:03.4]} 28... Rfe8 {[%clk 0:00:16.1]} 29. h6
{[%clk 0:01:02.2]} 29... Kf8 {[%clk 0:00:16.2]} 30. Qg7+ {[%clk 0:01:00.8]}
30... Ke7 {[%clk 0:00:16.2]} 31. Qxh7 {[%clk 0:01:01.1]} 31... Rh8 {[%clk
0:00:16.3]} 32. Qg7 {[%clk 0:01:01.3]} 32... Rag8 {[%clk 0:00:14.8]} 33. Qe5+
{[%clk 0:01:01.3]} 33... Be6 {[%clk 0:00:15.3]} 34. Qxf4 {[%clk 0:01:01.1]}
34... Rg6 {[%clk 0:00:10.5]} 35. Qc7+ {[%clk 0:01:00.5]} 35... Kf6 {[%clk
0:00:10.4]} 36. e5+ {[%clk 0:00:56.7]} 36... Kf5 {[%clk 0:00:09.8]} 37. Bd3+
{[%clk 0:00:56.2]} 37... Kg5 {[%clk 0:00:10]} 38. Bxg6 {[%clk 0:00:55.9]} 38...
Kxg6 {[%clk 0:00:10.7]} 39. Qxc6 {[%clk 0:00:55.1]} 39... Rxh6+ {[%clk
0:00:10.5]} 40. Kg1 {[%clk 0:00:55.6]} 40... Rh5 {[%clk 0:00:09.5]} 41. Qe4+
{[%clk 0:00:53.9]} 41... Bf5 {[%clk 0:00:08.7]} 42. Qd4 {[%clk 0:00:46.8]} 42...
Be6 {[%clk 0:00:07.9]} 43. Qc5 {[%clk 0:00:28.1]} 43... a5 {[%clk 0:00:07.6]}
44. Qxa5 {[%clk 0:00:27.7]} 44... f6 {[%clk 0:00:08.1]} 45. Qd8 {[%clk
0:00:17.4]} 45... Rxe5 {[%clk 0:00:08.5]} 46. Qe8+ {[%clk 0:00:16.5]} 46... Kf5
{[%clk 0:00:09.4]} 47. Qh5+ {[%clk 0:00:15.4]} 47... Ke4 {[%clk 0:00:09.7]} 48.
Qe2+ {[%clk 0:00:15.3]} 48... Kd5 {[%clk 0:00:10]} 49. Qd2+ {[%clk 0:00:15.2]}
49... Ke4 {[%clk 0:00:10.5]} 50. Qe2+ {[%clk 0:00:14.9]} 50... Kf5 {[%clk
0:00:11]} 51. Qh5+ {[%clk 0:00:14.4]} 51... Ke4 {[%clk 0:00:11.5]} 52. Qg6+
{[%clk 0:00:14.4]} 52... Kd5 {[%clk 0:00:12.1]} 53. Qxf6 {[%clk 0:00:13.9]}
53... Re1+ {[%clk 0:00:12.3]} 54. Kf2 {[%clk 0:00:13.3]} 54... Re5 {[%clk
0:00:12.5]} 55. Qd8+ {[%clk 0:00:12.1]} 55... Ke4 {[%clk 0:00:12.4]} 56. g3
{[%clk 0:00:10.8]} 56... Rf5+ {[%clk 0:00:12.2]} 57. Kg2 {[%clk 0:00:10.5]}
57... Re5 {[%clk 0:00:12.6]} 58. Qf6 {[%clk 0:00:08.7]} 58... Bf5 {[%clk
0:00:11.7]} 59. Qh4+ {[%clk 0:00:07.1]} 59... Kd5 {[%clk 0:00:11.6]} 60. Qf4
{[%clk 0:00:07.3]} 60... Be4+ {[%clk 0:00:11.4]} 61. Kg1 {[%clk 0:00:07.5]}
61... Rf5 {[%clk 0:00:11.6]} 62. Qd2+ {[%clk 0:00:07.6]} 62... Ke5 {[%clk
0:00:11.6]} 63. Qe3 {[%clk 0:00:07]} 63... Rf3 {[%clk 0:00:11.4]} 64. Qc5+
{[%clk 0:00:06.7]} 64... Bd5 {[%clk 0:00:11.7]} 65. Kh2 {[%clk 0:00:03.1]} 65...
Rf6 {[%clk 0:00:10.5]} 66. g4 {[%clk 0:00:02.6]} 66... Rh6+ {[%clk 0:00:10.1]}
67. Kg3 {[%clk 0:00:02.6]} 67... Rg6 {[%clk 0:00:10.1]} 68. Qc3+ {[%clk
0:00:03.1]} 68... Kd6 {[%clk 0:00:09.9]} 69. Qe3 {[%clk 0:00:03.3]} 69... Re6
{[%clk 0:00:09.8]} 70. Qd4 {[%clk 0:00:03.6]} 70... Re4 {[%clk 0:00:10.2]} 71.
Qb6+ {[%clk 0:00:03.9]} 71... Ke5 {[%clk 0:00:10.8]} 72. g5 {[%clk 0:00:04.2]}
72... Re3+ {[%clk 0:00:11.3]} 73. Kh4 {[%clk 0:00:03.3]} 73... Re2 {[%clk
0:00:11.1]} 74. Qf6+ {[%clk 0:00:02.8]} 74... Ke4 {[%clk 0:00:10]} 75. g6 {[%clk
0:00:03.4]} 75... Rh2+ {[%clk 0:00:09.5]} 76. Kg3 {[%clk 0:00:03.9]} 76... Rd2
{[%clk 0:00:06.7]} 77. g7 {[%clk 0:00:04.1]} 77... Rd3+ {[%clk 0:00:07.1]} 78.
Kg4 {[%clk 0:00:04]} 78... Rd1 {[%clk 0:00:06.5]} 79. Qf5+ {[%clk 0:00:03.8]}
79... Kd4 {[%clk 0:00:06.5]} 80. Qf4+ {[%clk 0:00:03.9]} 80... Be4 {[%clk
0:00:06.5]} 81. Qf2+ {[%clk 0:00:02.6]} 81... Ke5 {[%clk 0:00:06.3]} 82. g8=Q
{[%clk 0:00:02.9]} 82... Bd5 {[%clk 0:00:02.9]} 83. Qf5+ {[%clk 0:00:02.6]}
83... Kd4 {[%clk 0:00:03]} 84. Qg7+ {[%clk 0:00:03]} 84... Kc4 {[%clk
0:00:03.4]} 85. Qc7+ {[%clk 0:00:02.8]} 85... Kb3 {[%clk 0:00:02.8]} 86. Qxd5+
{[%clk 0:00:01.4]} 86... Rxd5 {[%clk 0:00:02.7]} 87. Qb7+ {[%clk 0:00:02.3]}
87... Kc4 {[%clk 0:00:02.7]} 88. Qc6+ {[%clk 0:00:02.8]} 88... Rc5 {[%clk
0:00:03.6]} 89. Qe4+ {[%clk 0:00:03.3]} 89... Kb5 {[%clk 0:00:03.3]} 90. Kf3
{[%clk 0:00:03.8]} 90... Rc4 {[%clk 0:00:04.2]} 91. Qd5+ {[%clk 0:00:04.2]}
91... Kb4 {[%clk 0:00:04.5]} 92. Qb7+ {[%clk 0:00:04.5]} 92... Kc3 {[%clk
0:00:04.6]} 93. Ke3 {[%clk 0:00:05.4]} 93... Rb4 {[%clk 0:00:03.9]} 94. Qc6+
{[%clk 0:00:05.5]} 94... Rc4 {[%clk 0:00:04.7]} 95. Qd5 {[%clk 0:00:05.7]} 95...
Rd4 {[%clk 0:00:05]} 96. Qxd4+ {[%clk 0:00:05.6]} 96... Kc2 {[%clk 0:00:05.9]}
97. Qd3+ {[%clk 0:00:05.3]} 1-0

[Event "*** SCC Grand Prix: Titled Tuesday Blitz"]
[Site "Chess.com"]
[Date "2020.06.09"]
[Round "4"]
[White "RestartingChess"]
[Black "Y0ung_Capablanca"]
[Result "1-0"]
[WhiteElo "2471"]
[BlackElo "2722"]
[TimeControl "180+1"]
[EndTime "9:34:09 PDT"]
[Termination "RestartingChess won by resignation"]

1. e4 {[%clk 0:03:00.9]} 1... c6 {[%clk 0:02:58.6]} 2. d4 {[%clk 0:02:57.6]}
2... d5 {[%clk 0:02:53.9]} 3. exd5 {[%clk 0:02:58.5]} 3... cxd5 {[%clk
0:02:54.1]} 4. c4 {[%clk 0:02:59.4]} 4... Nf6 {[%clk 0:02:52.3]} 5. Nc3 {[%clk
0:02:59.7]} 5... e6 {[%clk 0:02:51.1]} 6. Nf3 {[%clk 0:03:00]} 6... Bb4 {[%clk
0:02:47]} 7. Bd3 {[%clk 0:03:00.4]} 7... dxc4 {[%clk 0:02:46.4]} 8. Bxc4 {[%clk
0:03:01.3]} 8... O-O {[%clk 0:02:46.9]} 9. O-O {[%clk 0:03:01.6]} 9... b6 {[%clk
0:02:44.9]} 10. Bg5 {[%clk 0:03:01.6]} 10... Bb7 {[%clk 0:02:43.8]} 11. Re1
{[%clk 0:03:01.7]} 11... Nbd7 {[%clk 0:02:43.3]} 12. Qb3 {[%clk 0:03:00.8]}
12... Be7 {[%clk 0:02:42.3]} 13. Ne5 {[%clk 0:02:59.1]} 13... h6 {[%clk
0:02:41]} 14. Nxf7 {[%clk 0:02:40.4]} 14... Rxf7 {[%clk 0:02:37.8]} 15. Bxe6
{[%clk 0:02:39.6]} 15... hxg5 {[%clk 0:02:20.5]} 16. Bxf7+ {[%clk 0:02:38.6]}
16... Kf8 {[%clk 0:02:21.1]} 17. Bg6 {[%clk 0:02:34.3]} 1-0

[Event "*** SCC Grand Prix: Titled Tuesday Blitz"]
[Site "Chess.com"]
[Date "2020.06.09"]
[Round "4"]
[White "putra48"]
[Black "Aleksandar-Topalov"]
[Result "1-0"]
[WhiteElo "2615"]
[BlackElo "2376"]
[TimeControl "180+1"]
[EndTime "9:34:54 PDT"]
[Termination "putra48 won by resignation"]

1. e4 {[%clk 0:02:59.8]} 1... e6 {[%clk 0:02:57.7]} 2. d4 {[%clk 0:02:59.4]}
2... d5 {[%clk 0:02:57.6]} 3. Nc3 {[%clk 0:03:00.3]} 3... Bb4 {[%clk 0:02:57.3]}
4. e5 {[%clk 0:03:00.3]} 4... Qd7 {[%clk 0:02:57.4]} 5. a3 {[%clk 0:02:56.6]}
5... Bxc3+ {[%clk 0:02:57.2]} 6. bxc3 {[%clk 0:02:57.5]} 6... b6 {[%clk
0:02:57.7]} 7. Qg4 {[%clk 0:02:55]} 7... f5 {[%clk 0:02:57.3]} 8. exf6 {[%clk
0:02:55.1]} 8... Nxf6 {[%clk 0:02:56.8]} 9. Qg3 {[%clk 0:02:55.5]} 9... Ba6
{[%clk 0:02:56.5]} 10. Bd3 {[%clk 0:02:55.4]} 10... Bxd3 {[%clk 0:02:56]} 11.
cxd3 {[%clk 0:02:56.3]} 11... Nc6 {[%clk 0:02:56.4]} 12. a4 {[%clk 0:02:56.4]}
12... O-O {[%clk 0:02:55.9]} 13. Nf3 {[%clk 0:02:56.3]} 13... Rae8 {[%clk
0:02:40.7]} 14. O-O {[%clk 0:02:56.6]} 14... Kh8 {[%clk 0:02:30.3]} 15. Re1
{[%clk 0:02:56.1]} 15... Qf7 {[%clk 0:02:26.1]} 16. Ba3 {[%clk 0:02:54.9]} 16...
Rg8 {[%clk 0:02:24]} 17. Re2 {[%clk 0:02:54.8]} 17... h6 {[%clk 0:02:16.9]} 18.
Rae1 {[%clk 0:02:52.5]} 18... a6 {[%clk 0:02:13.3]} 19. Nh4 {[%clk 0:02:46.1]}
19... Kh7 {[%clk 0:02:11.4]} 20. Qh3 {[%clk 0:02:30.3]} 20... Nd8 {[%clk
0:02:03.4]} 21. Nf3 {[%clk 0:02:29]} 21... Nd7 {[%clk 0:02:01.4]} 22. Ng5+
{[%clk 0:02:28.1]} 1-0

[Event "*** SCC Grand Prix: Titled Tuesday Blitz"]
[Site "Chess.com"]
[Date "2020.06.09"]
[Round "4"]
[White "ajian"]
[Black "Caterpiller35"]
[Result "1-0"]
[WhiteElo "2453"]
[BlackElo "2293"]
[TimeControl "180+1"]
[EndTime "9:35:26 PDT"]
[Termination "ajian won by resignation"]

1. d4 {[%clk 0:03:00.9]} 1... Nf6 {[%clk 0:02:59]} 2. c4 {[%clk 0:03:01.1]} 2...
e6 {[%clk 0:02:57.2]} 3. Nc3 {[%clk 0:03:01.3]} 3... Bb4 {[%clk 0:02:56]} 4. Qc2
{[%clk 0:03:01.7]} 4... d5 {[%clk 0:02:49.2]} 5. cxd5 {[%clk 0:03:00.8]} 5...
exd5 {[%clk 0:02:47.9]} 6. Bg5 {[%clk 0:03:00.3]} 6... c5 {[%clk 0:02:45.3]} 7.
dxc5 {[%clk 0:02:58.5]} 7... Be6 {[%clk 0:02:38.3]} 8. e3 {[%clk 0:02:53.1]}
8... Nbd7 {[%clk 0:02:33.4]} 9. Bb5 {[%clk 0:02:40.7]} 9... Qa5 {[%clk
0:02:26.5]} 10. Bxf6 {[%clk 0:02:20.3]} 10... Qxb5 {[%clk 0:02:26.4]} 11. Bxg7
{[%clk 0:01:52.8]} 11... Rg8 {[%clk 0:02:26.2]} 12. Qxh7 {[%clk 0:01:53]} 12...
O-O-O {[%clk 0:02:21.3]} 13. Ne2 {[%clk 0:01:50.9]} 13... Nxc5 {[%clk
0:02:19.7]} 14. O-O {[%clk 0:01:42.2]} 14... Ne4 {[%clk 0:01:59.6]} 15. Nxb5
{[%clk 0:01:39.1]} 1-0

[Event "*** SCC Grand Prix: Titled Tuesday Blitz"]
[Site "Chess.com"]
[Date "2020.06.09"]
[Round "4"]
[White "SergioGarciaFuentes"]
[Black "Thipsay"]
[Result "0-1"]
[WhiteElo "2228"]
[BlackElo "2442"]
[TimeControl "180+1"]
[EndTime "9:35:28 PDT"]
[Termination "Thipsay won by resignation"]

1. d4 {[%clk 0:03:00.9]} 1... Nf6 {[%clk 0:02:59.9]} 2. Nf3 {[%clk 0:03:00.3]}
2... g6 {[%clk 0:02:59.9]} 3. g3 {[%clk 0:02:58.2]} 3... Bg7 {[%clk 0:03:00]} 4.
b3 {[%clk 0:02:58.2]} 4... O-O {[%clk 0:02:59.8]} 5. Bb2 {[%clk 0:02:58.6]} 5...
d6 {[%clk 0:03:00.2]} 6. Bg2 {[%clk 0:02:58]} 6... e5 {[%clk 0:02:59.9]} 7. dxe5
{[%clk 0:02:56.4]} 7... Nfd7 {[%clk 0:02:59.9]} 8. Nbd2 {[%clk 0:02:53.9]} 8...
dxe5 {[%clk 0:02:57]} 9. Qc1 {[%clk 0:02:47]} 9... Nc6 {[%clk 0:02:56.6]} 10.
O-O {[%clk 0:02:46.4]} 10... Re8 {[%clk 0:02:51.2]} 11. e3 {[%clk 0:02:30.2]}
11... e4 {[%clk 0:02:41.6]} 12. Ne1 {[%clk 0:02:29.1]} 12... f5 {[%clk
0:02:36.5]} 13. Bxg7 {[%clk 0:02:20.5]} 13... Kxg7 {[%clk 0:02:36.2]} 14. Qb2+
{[%clk 0:02:21.1]} 14... Qf6 {[%clk 0:02:36.2]} 15. Qxf6+ {[%clk 0:01:50.3]}
15... Nxf6 {[%clk 0:02:36.1]} 16. Bh1 {[%clk 0:01:22.2]} 16... Ne5 {[%clk
0:02:29.1]} 17. Ng2 {[%clk 0:01:18.7]} 17... Rd8 {[%clk 0:02:29.2]} 18. Rfd1
{[%clk 0:01:14.6]} 18... Rxd2 {[%clk 0:02:27.8]} 0-1

[Event "*** SCC Grand Prix: Titled Tuesday Blitz"]
[Site "Chess.com"]
[Date "2020.06.09"]
[Round "4"]
[White "Chess_Boxer123"]
[Black "Gahan-MG"]
[Result "1-0"]
[WhiteElo "2733"]
[BlackElo "2529"]
[TimeControl "180+1"]
[EndTime "9:35:30 PDT"]
[Termination "Chess_Boxer123 won by resignation"]

1. d4 {[%clk 0:03:00.9]} 1... Nf6 {[%clk 0:02:57.3]} 2. c4 {[%clk 0:03:00.2]}
2... e5 {[%clk 0:02:53.7]} 3. dxe5 {[%clk 0:02:57.8]} 3... Ng4 {[%clk
0:02:52.7]} 4. e3 {[%clk 0:02:57.1]} 4... Nxe5 {[%clk 0:02:52.5]} 5. Nc3 {[%clk
0:02:57.4]} 5... Bb4 {[%clk 0:02:51.9]} 6. Bd2 {[%clk 0:02:56.6]} 6... O-O
{[%clk 0:02:51.3]} 7. Be2 {[%clk 0:02:54.1]} 7... Re8 {[%clk 0:02:51.2]} 8. a3
{[%clk 0:02:44.9]} 8... Bf8 {[%clk 0:02:48.4]} 9. Nf3 {[%clk 0:02:43.2]} 9...
Nbc6 {[%clk 0:02:48.3]} 10. Nd5 {[%clk 0:02:42.9]} 10... a5 {[%clk 0:02:45.9]}
11. Bc3 {[%clk 0:02:41.7]} 11... d6 {[%clk 0:02:44.8]} 12. b3 {[%clk 0:02:39.7]}
12... Nxf3+ {[%clk 0:02:44.2]} 13. gxf3 {[%clk 0:02:39.4]} 13... Ne5 {[%clk
0:02:45.1]} 14. f4 {[%clk 0:02:38.7]} 14... Ng6 {[%clk 0:02:44.2]} 15. h4 {[%clk
0:02:32.6]} 15... c6 {[%clk 0:02:41.4]} 16. h5 {[%clk 0:02:32.6]} 16... Nh8
{[%clk 0:02:39.7]} 17. Nf6+ {[%clk 0:02:20.2]} 17... gxf6 {[%clk 0:02:39.6]} 18.
Rg1+ {[%clk 0:02:11.3]} 18... Ng6 {[%clk 0:02:38.3]} 19. Bd3 {[%clk 0:02:07]}
19... Bg7 {[%clk 0:02:35]} 20. Qc2 {[%clk 0:01:38.8]} 20... f5 {[%clk
0:02:29.4]} 21. Bxg7 {[%clk 0:01:31.8]} 21... Kxg7 {[%clk 0:02:28.8]} 22. Qc3+
{[%clk 0:01:32]} 22... Qf6 {[%clk 0:02:28]} 23. h6+ {[%clk 0:01:32.5]} 1-0

[Event "*** SCC Grand Prix: Titled Tuesday Blitz"]
[Site "Chess.com"]
[Date "2020.06.09"]
[Round "4"]
[White "aa175"]
[Black "Reader777"]
[Result "1-0"]
[WhiteElo "2395"]
[BlackElo "2599"]
[TimeControl "180+1"]
[EndTime "9:35:36 PDT"]
[Termination "aa175 won by resignation"]

1. d4 {[%clk 0:03:00.9]} 1... Nf6 {[%clk 0:02:59.6]} 2. Nf3 {[%clk 0:02:59.8]}
2... e6 {[%clk 0:02:59.3]} 3. Bf4 {[%clk 0:02:59.9]} 3... c5 {[%clk 0:02:59.1]}
4. e3 {[%clk 0:03:00.2]} 4... Nc6 {[%clk 0:02:59.4]} 5. Nbd2 {[%clk 0:02:59.8]}
5... d5 {[%clk 0:02:58.6]} 6. c3 {[%clk 0:02:59.4]} 6... Bd6 {[%clk 0:02:58.1]}
7. Bg3 {[%clk 0:02:56.2]} 7... O-O {[%clk 0:02:57.8]} 8. Bd3 {[%clk 0:02:50.1]}
8... b6 {[%clk 0:02:56.9]} 9. e4 {[%clk 0:02:48.8]} 9... dxe4 {[%clk 0:02:46]}
10. Nxe4 {[%clk 0:02:48.1]} 10... Nxe4 {[%clk 0:02:23.8]} 11. Bxe4 {[%clk
0:02:49]} 11... Bb7 {[%clk 0:02:19.4]} 12. dxc5 {[%clk 0:02:48.9]} 12... Bxc5
{[%clk 0:02:18.3]} 13. Qa4 {[%clk 0:02:47.3]} 13... Rc8 {[%clk 0:02:03.6]} 14.
Rd1 {[%clk 0:02:45.2]} 14... Qe8 {[%clk 0:01:10.5]} 15. Bxh7+ {[%clk 0:02:43.4]}
15... Kxh7 {[%clk 0:01:09.2]} 16. Qh4+ {[%clk 0:02:43.4]} 16... Kg6 {[%clk
0:01:03.6]} 17. Qg5+ {[%clk 0:02:42.4]} 17... Kh7 {[%clk 0:01:03.8]} 18. Qh5+
{[%clk 0:02:43.3]} 18... Kg8 {[%clk 0:01:03.8]} 19. Ng5 {[%clk 0:02:44.2]} 1-0

[Event "*** SCC Grand Prix: Titled Tuesday Blitz"]
[Site "Chess.com"]
[Date "2020.06.09"]
[Round "4"]
[White "Tsyhanchuk_Stanislav"]
[Black "2008king"]
[Result "0-1"]
[WhiteElo "2404"]
[BlackElo "2188"]
[TimeControl "180+1"]
[EndTime "9:35:42 PDT"]
[Termination "2008king won by resignation"]

1. e4 {[%clk 0:02:49.2]} 1... e5 {[%clk 0:02:59.2]} 2. Nf3 {[%clk 0:02:48.6]}
2... Nc6 {[%clk 0:02:58.8]} 3. Bb5 {[%clk 0:02:46.8]} 3... a6 {[%clk 0:02:58.2]}
4. Ba4 {[%clk 0:02:45]} 4... Nf6 {[%clk 0:02:56.6]} 5. O-O {[%clk 0:02:43.9]}
5... b5 {[%clk 0:02:49.4]} 6. Bb3 {[%clk 0:02:41.3]} 6... Bb7 {[%clk 0:02:49.7]}
7. a3 {[%clk 0:02:37.3]} 7... Bc5 {[%clk 0:02:41.5]} 8. d3 {[%clk 0:02:36.1]}
8... d6 {[%clk 0:02:40.3]} 9. h3 {[%clk 0:02:28.8]} 9... h6 {[%clk 0:02:37.7]}
10. Nbd2 {[%clk 0:02:27.3]} 10... O-O {[%clk 0:02:35.9]} 11. c3 {[%clk
0:02:25.4]} 11... Bb6 {[%clk 0:02:22.6]} 12. Qe2 {[%clk 0:02:20.7]} 12... Re8
{[%clk 0:02:08.4]} 13. Re1 {[%clk 0:02:19.3]} 13... d5 {[%clk 0:02:07.7]} 14.
Nf1 {[%clk 0:02:16.6]} 14... dxe4 {[%clk 0:02:02.4]} 15. dxe4 {[%clk 0:02:16.3]}
15... Nh5 {[%clk 0:01:33.6]} 16. Ng3 {[%clk 0:01:47.3]} 16... Nxg3 {[%clk
0:01:31]} 0-1

[Event "*** SCC Grand Prix: Titled Tuesday Blitz"]
[Site "Chess.com"]
[Date "2020.06.09"]
[Round "4"]
[White "chessmaugli"]
[Black "GukeshDommaraju"]
[Result "0-1"]
[WhiteElo "2437"]
[BlackElo "2650"]
[TimeControl "180+1"]
[EndTime "9:35:43 PDT"]
[Termination "GukeshDommaraju won by checkmate"]

1. e4 {[%clk 0:03:00.9]} 1... c5 {[%clk 0:02:59.9]} 2. Nf3 {[%clk 0:03:00.3]}
2... Nc6 {[%clk 0:02:59.4]} 3. Bb5 {[%clk 0:02:59.7]} 3... g6 {[%clk 0:02:59.3]}
4. Bxc6 {[%clk 0:02:59.2]} 4... dxc6 {[%clk 0:03:00.2]} 5. d3 {[%clk 0:02:58.9]}
5... Bg7 {[%clk 0:03:00.1]} 6. h3 {[%clk 0:02:59.3]} 6... Nf6 {[%clk 0:02:59.6]}
7. O-O {[%clk 0:02:57.9]} 7... Nd7 {[%clk 0:02:58.9]} 8. Nc3 {[%clk 0:02:55.6]}
8... e5 {[%clk 0:02:58.9]} 9. Be3 {[%clk 0:02:53.9]} 9... b6 {[%clk 0:02:58.8]}
10. Nh2 {[%clk 0:02:49.4]} 10... Nf8 {[%clk 0:02:53]} 11. Ne2 {[%clk 0:02:44.4]}
11... Ne6 {[%clk 0:02:48]} 12. Rb1 {[%clk 0:02:39.9]} 12... O-O {[%clk
0:02:39.9]} 13. b3 {[%clk 0:02:19.8]} 13... Nd4 {[%clk 0:02:20.1]} 14. f4 {[%clk
0:02:16.3]} 14... exf4 {[%clk 0:02:13]} 15. Bxf4 {[%clk 0:02:14.2]} 15... f5
{[%clk 0:02:09.2]} 16. exf5 {[%clk 0:02:05.6]} 16... Bxf5 {[%clk 0:02:08.5]} 17.
Nxd4 {[%clk 0:02:00.1]} 17... Qxd4+ {[%clk 0:02:07.8]} 18. Kh1 {[%clk 0:01:57]}
18... Bxh3 {[%clk 0:02:07.5]} 19. c3 {[%clk 0:01:41.7]} 19... Qd5 {[%clk
0:01:56.3]} 20. c4 {[%clk 0:01:32.9]} 20... Qxg2# {[%clk 0:01:55.5]} 0-1

[Event "*** SCC Grand Prix: Titled Tuesday Blitz"]
[Site "Chess.com"]
[Date "2020.06.09"]
[Round "4"]
[White "Alopekos"]
[Black "anesar92"]
[Result "1-0"]
[WhiteElo "2498"]
[BlackElo "2671"]
[TimeControl "180+1"]
[EndTime "9:35:44 PDT"]
[Termination "Alopekos won by resignation"]

1. e4 {[%clk 0:03:00.9]} 1... Nf6 {[%clk 0:02:59.2]} 2. e5 {[%clk 0:03:00.6]}
2... Nd5 {[%clk 0:02:59.4]} 3. Nc3 {[%clk 0:03:01.2]} 3... Nxc3 {[%clk
0:02:55.2]} 4. dxc3 {[%clk 0:03:02.1]} 4... g6 {[%clk 0:02:54.9]} 5. Nf3 {[%clk
0:03:01.3]} 5... Bg7 {[%clk 0:02:54.9]} 6. Bf4 {[%clk 0:03:01.9]} 6... O-O
{[%clk 0:02:54.7]} 7. Qd2 {[%clk 0:03:01.8]} 7... d6 {[%clk 0:02:53.9]} 8. O-O-O
{[%clk 0:03:02.3]} 8... Nc6 {[%clk 0:02:52.4]} 9. exd6 {[%clk 0:02:55.3]} 9...
exd6 {[%clk 0:02:42.5]} 10. Bh6 {[%clk 0:02:53.3]} 10... Bg4 {[%clk 0:02:39.8]}
11. Be2 {[%clk 0:02:44]} 11... Re8 {[%clk 0:02:37.3]} 12. Bxg7 {[%clk
0:02:39.1]} 12... Kxg7 {[%clk 0:02:38.2]} 13. h3 {[%clk 0:02:38.4]} 13... Bxf3
{[%clk 0:02:34.3]} 14. Bxf3 {[%clk 0:02:39.3]} 14... Qf6 {[%clk 0:02:34.1]} 15.
Rhe1 {[%clk 0:02:32.5]} 15... Ne5 {[%clk 0:02:32.2]} 16. Bxb7 {[%clk 0:02:22.2]}
16... Rab8 {[%clk 0:02:29.3]} 17. Bd5 {[%clk 0:02:20.6]} 17... c5 {[%clk
0:01:53.8]} 18. f4 {[%clk 0:02:10.4]} 18... Nd7 {[%clk 0:01:53.6]} 19. Rxe8
{[%clk 0:02:04.3]} 19... Rxe8 {[%clk 0:01:54.5]} 20. Bc6 {[%clk 0:02:04.9]}
20... Rd8 {[%clk 0:01:33.5]} 21. Qxd6 {[%clk 0:02:03.6]} 1-0

[Event "*** SCC Grand Prix: Titled Tuesday Blitz"]
[Site "Chess.com"]
[Date "2020.06.09"]
[Round "4"]
[White "seorobert1971"]
[Black "zajka-molotok"]
[Result "1/2-1/2"]
[WhiteElo "2683"]
[BlackElo "2386"]
[TimeControl "180+1"]
[EndTime "9:35:44 PDT"]
[Termination "Game drawn by repetition"]

1. d4 {[%clk 0:03:00.9]} 1... d5 {[%clk 0:02:51]} 2. c4 {[%clk 0:03:00.9]} 2...
c6 {[%clk 0:02:51.6]} 3. Nc3 {[%clk 0:03:00.9]} 3... Nf6 {[%clk 0:02:51.3]} 4.
e3 {[%clk 0:03:00.6]} 4... g6 {[%clk 0:02:49.8]} 5. Nf3 {[%clk 0:03:00.5]} 5...
Bg7 {[%clk 0:02:50]} 6. h3 {[%clk 0:03:00.8]} 6... O-O {[%clk 0:02:50.1]} 7. Bd3
{[%clk 0:03:01]} 7... Nbd7 {[%clk 0:02:49.5]} 8. O-O {[%clk 0:03:00.7]} 8... Re8
{[%clk 0:02:49.5]} 9. cxd5 {[%clk 0:02:57.4]} 9... cxd5 {[%clk 0:02:48.8]} 10.
Qb3 {[%clk 0:02:57.4]} 10... e5 {[%clk 0:02:42.8]} 11. dxe5 {[%clk 0:02:53.1]}
11... Nxe5 {[%clk 0:02:42.7]} 12. Nxe5 {[%clk 0:02:53.3]} 12... Rxe5 {[%clk
0:02:43.3]} 13. Ne2 {[%clk 0:02:44.9]} 13... Ne4 {[%clk 0:02:35.8]} 14. Nd4
{[%clk 0:02:41.8]} 14... Qh4 {[%clk 0:02:07.6]} 15. f4 {[%clk 0:02:32.7]} 15...
Rh5 {[%clk 0:01:59]} 16. Be2 {[%clk 0:02:22.4]} 16... Bxh3 {[%clk 0:01:56]} 17.
Bxh5 {[%clk 0:02:18.9]} 17... Bxg2 {[%clk 0:01:30.7]} 18. Kxg2 {[%clk
0:02:18.8]} 18... Qg3+ {[%clk 0:01:29.9]} 19. Kh1 {[%clk 0:02:19.1]} 19... Qh3+
{[%clk 0:01:14.7]} 20. Kg1 {[%clk 0:02:19.2]} 20... Qg3+ {[%clk 0:01:13.5]} 21.
Kh1 {[%clk 0:02:19.1]} 21... Qh3+ {[%clk 0:01:13.8]} 22. Kg1 {[%clk 0:02:19.4]}
22... Qg3+ {[%clk 0:01:14.1]} 23. Kh1 {[%clk 0:02:18.7]} 1/2-1/2